fUST/lending_fUST_20241113
["ID","MTS","AMOUNT","RATE_DAILY","PERIOD"]
[342143113,1731504644136,-153.0,0.00021555,2]
[342143115,1731504644145,-153.0,0.00021555,2]
[342143116,1731504644155,-153.0,0.00021555,2]
[342143117,1731504644165,-153.0,0.00021555,2]
[342143118,1731504644175,-153.0,0.00021555,2]
[342143119,1731504644184,-153.0,0.00021555,2]
[342143120,1731504644194,-153.0,0.00021555,2]
[342143121,1731504644203,-153.0,0.00021555,2]
[342143122,1731504644213,-153.0,0.00021555,2]
[342143123,1731504644223,-153.0,0.00021555,2]
[342143124,1731504644232,-387.282083,0.00021664,2]
[342143125,1731504644242,-380.464928,0.00021664,2]
[342143126,1731504644252,-380.464927,0.00021664,2]
[342143127,1731504644262,-387.282083,0.00021664,2]
[342143128,1731504644272,-162.194266,0.00021664,2]
[342143129,1731504644281,-152.185971,0.00021664,2]
[342143130,1731504644290,-607.12,0.00021707,2]
[342143131,1731504644300,-500.0,0.00021707,2]
[342143132,1731504644309,-500.0,0.00021708,2]
[342143133,1731504644318,-190.25072136,0.00021708,2]
[342143134,1731504644328,-500.0,0.00021708,2]
[342143135,1731504644337,-500.0,0.00021708,2]
[342143136,1731504644347,-683.26,0.00021708,2]
[342143137,1731504644362,-500.0,0.00021708,2]
[342143138,1731504644371,-500.0,0.00021708,2]
[342143139,1731504644381,-545.97,0.00021708,2]
[342143140,1731504644391,-500.0,0.00021708,2]
[342143141,1731504644401,-500.0,0.00021708,2]
[342143142,1731504644411,-2740.57,0.00021708,2]
[342143143,1731504644420,-560.36,0.00021708,2]
[342143144,1731504644430,-515.51,0.00021708,2]
[342143145,1731504644439,-500.0,0.00021708,2]
[342143146,1731504644448,-500.0,0.00021708,2]
[342143147,1731504644457,-584.38,0.00021708,2]
[342143148,1731504644466,-500.0,0.00021709,2]
[342143149,1731504644475,-500.0,0.00021709,2]
[342143150,1731504644484,-301.71980061,0.00021709,2]
[342143151,1731504644494,-755.91,0.00021709,2]
[342143152,1731504644503,-500.0,0.00021709,2]
[342143153,1731504644512,-537.71,0.00021709,2]
[342143154,1731504644521,-3000.0,0.000218,2]
[342143155,1731504644531,-8859.47034946,0.000218,10]
[342143156,1731504644540,-3299.455882,0.0002181,2]
[342143157,1731504644549,-1181.79,0.000219,2]
[342143158,1731504644558,-300.638395,0.000219,9]
[342143159,1731504644568,-151.0,0.00021917,2]
[342143160,1731504644578,-2336.0,0.00021917,2]
[342143161,1731504644588,-2336.0,0.00021917,2]
[342143162,1731504644598,-2336.0,0.00021917,2]
[342143163,1731504644619,-2336.0,0.00021917,2]
[342143164,1731504644629,-2336.0,0.00021917,2]
[342143165,1731504644638,-2336.0,0.00021917,2]
[342143166,1731504644647,-2336.0,0.00021917,2]
[342143167,1731504644657,-2354.43998529,0.00021917,2]
[342143168,1731504644666,-500.0,0.00021918,2]
[342143169,1731504644676,-371.04258781,0.00021918,2]
[342143170,1731504644685,-500.0,0.00021918,2]
[342143171,1731504644695,-500.0,0.00021918,2]
[342143172,1731504644705,-500.0,0.00021918,2]
[342143173,1731504644714,-387.282083,0.00021925,2]
[342143174,1731504644724,-380.464928,0.00021925,2]
[342143175,1731504644734,-380.464927,0.00021925,2]
[342143176,1731504644743,-387.282083,0.00021925,2]
[342143177,1731504644752,-162.194266,0.00021925,2]
[342143178,1731504644762,-152.185971,0.00021925,2]
[342143179,1731504644771,-151.0,0.0002198,7]
[342143180,1731504644780,-295.896567,0.0002198,7]
[342143181,1731504644790,-607.12,0.00021981,2]
[342143182,1731504644799,-500.0,0.00021981,2]
[342143183,1731504644808,-500.0,0.00021982,2]
[342143184,1731504644817,-500.0,0.00021982,2]
[342143185,1731504644826,-402.05923663,0.00021982,2]
[342143186,1731504644836,-683.26,0.00021982,2]
[342143187,1731504644845,-500.0,0.00021982,2]
[342143188,1731504644857,-537.84972703,0.00021982,2]
[342143189,1731504644867,-545.97,0.00021982,2]
[342143190,1731504644876,-500.0,0.00021982,2]
[342143191,1731504644886,-500.0,0.00021982,2]
[342143192,1731504644895,-2740.57,0.00021982,2]
[342143193,1731504644907,-560.36,0.00021982,2]
[342143194,1731504644916,-515.51,0.00021982,2]
[342143195,1731504644926,-500.0,0.00021982,2]
[342143196,1731504644936,-500.0,0.00021982,2]
[342143197,1731504644947,-584.38,0.00021982,2]
[342143198,1731504644957,-500.0,0.00021983,2]
[342143199,1731504644967,-500.0,0.00021983,2]
[342143200,1731504644978,-755.91,0.00021983,2]
[342143201,1731504644988,-500.0,0.00021983,2]
[342143202,1731504644999,-537.71,0.00021983,2]
[342143203,1731504645008,-75687.53929562,0.00022,30]
[342143204,1731504645018,-10094.87393644,0.00022,2]
[342143205,1731504645027,-12078.52524984,0.0002201,16]
[342143206,1731504645039,-530.0,0.00022227,2]
[342143207,1731504645052,-2390.0,0.00022227,2]
[342143208,1731504645062,-1123.0,0.00022227,2]
[342143209,1731504645073,-607.12,0.00022255,2]
[342143210,1731504645084,-500.0,0.00022255,2]
[342143211,1731504645093,-500.0,0.00022256,2]
[342143212,1731504645107,-500.0,0.00022256,2]
[342143213,1731504645116,-683.26,0.00022256,2]
[342143214,1731504645125,-500.0,0.00022256,2]
[342143215,1731504645135,-545.97,0.00022256,2]
[342143216,1731504645145,-500.0,0.00022256,2]
[342143217,1731504645154,-2740.57,0.00022256,2]
[342143218,1731504645163,-560.36,0.00022256,2]
[342143219,1731504645173,-515.51,0.00022256,2]
[342143220,1731504645184,-500.0,0.00022256,2]
[342143221,1731504645194,-500.0,0.00022256,2]
[342143222,1731504645203,-584.38,0.00022256,2]
[342143223,1731504645213,-500.0,0.00022257,2]
[342143224,1731504645223,-500.0,0.00022257,2]
[342143225,1731504645233,-755.91,0.00022257,2]
[342143226,1731504645244,-500.0,0.00022257,2]
[342143227,1731504645253,-537.71,0.00022257,2]
[342143228,1731504645263,-1500.0,0.0002229,2]
[342143229,1731504645272,-663.28322645,0.000223,2]
[342143230,1731504645282,-500.0,0.0002231,2]
[342143231,1731504645292,-607.12,0.00022529,2]
[342143232,1731504645303,-500.0,0.00022529,2]
[342143233,1731504645312,-346.77884562,0.0002253,2]
[342143234,1731504645321,-500.0,0.0002253,2]
[342143235,1731504645330,-683.26,0.0002253,2]
[342143236,1731504645339,-500.0,0.0002253,2]
[342143237,1731504645349,-545.97,0.0002253,2]
[342143238,1731504645362,-500.0,0.0002253,2]
[342143239,1731504645371,-2740.57,0.0002253,2]
[342143240,1731504645381,-560.36,0.0002253,2]
[342143241,1731504645391,-515.51,0.0002253,2]
[342143242,1731504645400,-425.1108604,0.0002253,2]
[342143243,1731504645409,-500.0,0.0002253,2]
[342143244,1731504645418,-584.38,0.0002253,2]
[342143245,1731504645427,-386.63599869,0.00022531,2]
[342143246,1731504645437,-500.0,0.00022531,2]
[342143247,1731504645446,-755.91,0.00022531,2]
[342143248,1731504645455,-500.0,0.00022531,2]
[342143249,1731504645464,-537.71,0.00022531,2]
[342143250,1731504645474,-607.12,0.00022803,2]
[342143251,1731504645484,-500.0,0.00022803,2]
[342143252,1731504645494,-500.0,0.00022804,2]
[342143253,1731504645504,-683.26,0.00022804,2]
[342143254,1731504645514,-500.0,0.00022804,2]
[342143255,1731504645523,-545.97,0.00022804,2]
[342143256,1731504645532,-500.0,0.00022804,2]
[342143257,1731504645542,-2740.57,0.00022804,2]
[342143258,1731504645552,-560.36,0.00022804,2]
[342143259,1731504645561,-515.51,0.00022804,2]
[342143260,1731504645571,-500.0,0.00022804,2]
[342143261,1731504645581,-584.38,0.00022804,2]
[342143262,1731504645591,-500.0,0.00022805,2]
[342143263,1731504645603,-755.91,0.00022805,2]
[342143264,1731504645617,-500.0,0.00022805,2]
[342143265,1731504645627,-537.71,0.00022805,2]
[342143266,1731504645637,-242.26513556,0.00023,2]
[342143267,1731504645647,-150.99999914,0.00023,2]
[342143268,1731504645656,-5790.32914254,0.00023,7]
[342143269,1731504645667,-607.12,0.00023077,2]
[342143270,1731504645677,-500.0,0.00023077,2]
[342143271,1731504645688,-500.0,0.00023078,2]
[342143272,1731504645698,-683.26,0.00023078,2]
[342143273,1731504645708,-433.06718901,0.00023078,2]
[342143274,1731504645718,-545.97,0.00023078,2]
[342143275,1731504645728,-500.0,0.00023078,2]
[342143276,1731504645737,-2740.57,0.00023078,2]
[342143277,1731504645747,-560.36,0.00023078,2]
[342143278,1731504645756,-515.51,0.00023078,2]
[342143279,1731504645766,-500.0,0.00023078,2]
[342143281,1731504645775,-584.38,0.00023078,2]
[342143282,1731504645785,-533.71058711,0.00023079,2]
[342143283,1731504645795,-755.91,0.00023079,2]
[342143285,1731504645805,-500.0,0.00023079,2]
[342143286,1731504645814,-537.71,0.00023079,2]
[342143287,1731504645824,-172.106,0.00023186,3]
[342143288,1731504645834,-607.12,0.00023351,2]
[342143289,1731504645843,-500.0,0.00023351,2]
[342143290,1731504645859,-500.0,0.00023352,2]
[342143291,1731504645868,-683.26,0.00023352,2]
[342143292,1731504645879,-545.97,0.00023352,2]
[342143293,1731504645890,-468.53479881,0.00023352,2]
[342143295,1731504645900,-2740.57,0.00023352,2]
[342143296,1731504645910,-560.36,0.00023352,2]
[342143297,1731504645920,-515.51,0.00023352,2]
[342143300,1731504645931,-500.0,0.00023352,2]
[342143302,1731504645941,-584.38,0.00023352,2]
[342143304,1731504645952,-152.075088,0.00023353,7]
[342143306,1731504645965,-295.896567,0.00023353,7]
[342143309,1731504645977,-755.91,0.00023353,2]
[342143311,1731504645987,-500.0,0.00023353,2]
[342143313,1731504645998,-537.71,0.00023353,2]
[342143315,1731504646008,-615.0,0.000234,2]
[342143317,1731504646018,-2000.0,0.00023587,2]
[342143319,1731504646027,-607.12,0.00023625,2]
[342143321,1731504646036,-273.25614211,0.00023625,2]
[342143323,1731504646045,-500.0,0.00023626,2]
[342143325,1731504646054,-683.26,0.00023626,2]
[342143327,1731504646064,-545.97,0.00023626,2]
[342143328,1731504646075,-2740.57,0.00023626,2]
[342143330,1731504646086,-560.36,0.00023626,2]
[342143332,1731504646096,-515.51,0.00023626,2]
[342143334,1731504646110,-500.0,0.00023626,2]
[342143336,1731504646120,-584.38,0.00023626,2]
[342143338,1731504646130,-755.91,0.00023627,2]
[342143340,1731504646140,-443.89693389,0.00023627,2]
[342143343,1731504646150,-537.71,0.00023627,2]
[342143344,1731504646162,-168.842,0.0002363,2]
[342143345,1731504646172,-967.347253,0.0002375,2]
[342143346,1731504646182,-500.0,0.000238,2]
[342143347,1731504646192,-501.47709983,0.00023839,9]
[342143348,1731504646203,-607.12,0.00023899,2]
[342143349,1731504646212,-500.0,0.000239,2]
[342143350,1731504646223,-683.26,0.000239,2]
[342143351,1731504646232,-545.97,0.000239,2]
[342143352,1731504646242,-2740.57,0.000239,2]
[342143353,1731504646252,-560.36,0.000239,2]
[342143354,1731504646262,-515.51,0.000239,2]
[342143355,1731504646272,-500.0,0.000239,2]
[342143356,1731504646283,-584.38,0.000239,2]
[342143357,1731504646294,-755.91,0.00023901,2]
[342143358,1731504646305,-537.71,0.00023901,2]
[342143359,1731504646316,-1083.17975,0.0002395,2]
[342143360,1731504646327,-176.469,0.00023994,2]
[342143361,1731504646337,-3979.08893444,0.00024,2]
[342143362,1731504646350,-2500.0,0.000241,3]
[342143363,1731504646367,-151.0,0.00024101,3]
[342143364,1731504646379,-2500.0,0.00024109,3]
[342143365,1731504646391,-277.768,0.00024134,2]
[342143366,1731504646402,-183.027,0.00024134,2]
[342143367,1731504646412,-502.36812705,0.00024152,9]
[342143368,1731504646423,-607.12,0.00024173,2]
[342143369,1731504646433,-190.66530485,0.00024174,2]
[342143370,1731504646444,-683.26,0.00024174,2]
[342143371,1731504646456,-545.97,0.00024174,2]
[342143372,1731504646466,-2740.57,0.00024174,2]
[342143373,1731504646477,-560.36,0.00024174,2]
[342143374,1731504646488,-515.51,0.00024174,2]
[342143375,1731504646499,-500.0,0.00024174,2]
[342143376,1731504646510,-584.38,0.00024174,2]
[342143377,1731504646522,-755.91,0.00024175,2]
[342143378,1731504646532,-537.71,0.00024175,2]
[342143379,1731504646543,-200.0,0.0002422,13]
[342143380,1731504646553,-500.0,0.00024234,9]
[342143381,1731504646563,-151.0,0.00024401,4]
[342143382,1731504646575,-875.761,0.00024436,2]
[342143383,1731504646585,-607.12,0.00024447,2]
[342143384,1731504646596,-683.26,0.00024448,2]
[342143385,1731504646611,-545.97,0.00024448,2]
[342143386,1731504646830,-2740.57,0.00024448,2]
[342143387,1731504646842,-560.36,0.00024448,2]
[342143388,1731504646856,-515.51,0.00024448,2]
[342143389,1731504646868,-184.06110633,0.00024448,2]
[342143390,1731504646880,-584.38,0.00024448,2]
[342143391,1731504646890,-755.91,0.00024449,2]
[342143392,1731504646902,-537.71,0.00024449,2]
[342143393,1731504646914,-567.30264131,0.00024657,10]
[342143394,1731504646924,-151.0,0.00024658,7]
[342143395,1731504646935,-151.0,0.00024658,7]
[342143396,1731504646946,-151.0,0.00024658,7]
[342143397,1731504646959,-151.0,0.000247,4]
[342143398,1731504646970,-607.12,0.00024721,2]
[342143399,1731504646981,-683.26,0.00024722,2]
[342143400,1731504646991,-545.97,0.00024722,2]
[342143401,1731504647002,-2740.57,0.00024722,2]
[342143403,1731504647012,-560.36,0.00024722,2]
[342143404,1731504647024,-515.51,0.00024722,2]
[342143405,1731504647034,-584.38,0.00024722,2]
[342143406,1731504647044,-755.91,0.00024723,2]
[342143407,1731504647054,-537.71,0.00024723,2]
[342143408,1731504647065,-12274.79207436,0.0002475,2]
[342143409,1731504647075,-280.2599961,0.000248,2]
[342143410,1731504647319,1000.0,0.00027,60]
[342143411,1731504647520,-500.0,0.0001979,2]
[342143412,1731504647530,-506.52662423,0.00019791,2]
[342143413,1731504647540,-500.0,0.00020064,2]
[342143414,1731504647549,-500.0,0.00020338,2]
[342143415,1731504647558,-442.62645419,0.00020339,2]
[342143416,1731504647735,-353.00004,0.00019592,2]
[342143417,1731504647745,-561.68773349,0.00019773,2]
[342143418,1731504647755,-57.37354581,0.00020339,2]
[342143419,1731504647765,-500.0,0.00020339,2]
[342143420,1731504647774,-500.0,0.00020339,2]
[342143421,1731504647783,-500.0,0.00020339,2]
[342143422,1731504647792,-260.72946651,0.00020339,2]
[342143423,1731504647802,-500.0,0.00020612,2]
[342143424,1731504647811,-500.0,0.00020886,2]
[342143425,1731504647820,-1195.96,0.00021159,2]
[342143426,1731504647829,-500.0,0.0002116,2]
[342143427,1731504647839,-1195.96,0.00021433,2]
[342143428,1731504647848,-500.0,0.00021434,2]
[342143429,1731504647865,-1195.96,0.00021707,2]
[342143430,1731504647875,-500.0,0.00021708,2]
[342143431,1731504647888,-1195.96,0.00021981,2]
[342143432,1731504647899,-500.0,0.00021982,2]
[342143433,1731504647910,-1195.96,0.00022255,2]
[342143434,1731504647920,-500.249,0.00022323,2]
[342143435,1731504647930,-1195.96,0.00022529,2]
[342143436,1731504647941,-1195.96,0.00022803,2]
[342143437,1731504647953,-1195.96,0.00023077,2]
[342143438,1731504647965,-1195.96,0.00023351,2]
[342143439,1731504647977,-1195.96,0.00023625,2]
[342143440,1731504647988,-1195.96,0.00023899,2]
[342143441,1731504647999,-1195.96,0.00024173,2]
[342143442,1731504648011,-1195.96,0.00024447,2]
[342143443,1731504648022,-1195.96,0.00024721,2]
[342143444,1731504648033,-247.7400039,0.000248,2]
[342143445,1731504648044,-8991.15414891,0.000248,2]
[342143446,1731504648273,-151.0,0.000248,7]
[342143447,1731504648283,-151.0,0.000248,7]
[342143448,1731504648293,-7026.97369056,0.00024882,2]
[342143449,1731504648303,-1505.82526208,0.000249,2]
[342143450,1731504648312,-3615.48035766,0.00024924,2]
[342143451,1731504648322,-600.45360875,0.0002499,2]
[342143452,1731504648331,-6000.0,0.0002499,2]
[342143453,1731504648340,-607.12,0.00024995,2]
[342143454,1731504648350,-1195.96,0.00024995,2]
[342143455,1731504648365,-683.26,0.00024996,2]
[342143456,1731504648375,-545.97,0.00024996,2]
[342143457,1731504648385,-2740.57,0.00024996,2]
[342143458,1731504648395,-560.36,0.00024996,2]
[342143459,1731504648405,-515.51,0.00024996,2]
[342143460,1731504648415,-584.38,0.00024996,2]
[342143461,1731504648425,-295.896567,0.00024997,7]
[342143462,1731504648435,-755.91,0.00024997,2]
[342143463,1731504648445,-537.71,0.00024997,2]
[342143464,1731504648457,-1632.02407419,0.00024999,2]
[342143465,1731504648467,-4900.50715225,0.00024999,2]
[342143466,1731504648477,-164005.06473348,0.00025,2]
[342143467,1731504648487,-165.49956538,0.00025,2]
[342143468,1731504648496,-56950.9370326,0.00025,2]
[342143469,1731504648506,-203.43640087,0.00025,2]
[342143470,1731504648515,-509.93665546,0.00025,2]
[342143471,1731504648524,-10364.0,0.00025,2]
[342143472,1731504648534,-300.0,0.00025,2]
[342143473,1731504648543,-300.0,0.00025,2]
[342143474,1731504648552,-270.2,0.00025,2]
[342143475,1731504648562,-300.0,0.00025,2]
[342143476,1731504648572,-270.199999,0.00025,2]
[342143477,1731504648582,-300.0,0.00025,2]
[342143478,1731504648592,-270.2,0.00025,2]
[342143479,1731504648602,-270.2,0.00025,2]
[342143480,1731504648616,-151.0,0.00025,2]
[342143481,1731504648626,-268.105135,0.00025,7]
[342143482,1731504648635,-268.105135,0.00025,7]
[342143483,1731504648644,-151.0,0.00025,7]
[342143484,1731504648654,-290.519407,0.00025,7]
[342143485,1731504648664,-151.0,0.00025,7]
[342143486,1731504648673,-151.698986,0.00025,7]
[342143487,1731504648682,-151.0,0.00025,7]
[342143488,1731504648692,-151.0,0.00025,7]
[342143489,1731504648701,-295.896567,0.00025,7]
[342143490,1731504648710,-500.0,0.00025,17]
[342143491,1731504648720,-159.0,0.00025,2]
[342143492,1731504648730,-151.0,0.00025,4]
[342143494,1731504648739,-151.0,0.00025,4]
[342143495,1731504648748,-500.0,0.00025,2]
[342143496,1731504648758,-259.12470435,0.00025,2]
[342143498,1731504648767,-196.46978586,0.00025,2]
[342143499,1731504648776,-297.65938785,0.00025,2]
[342143500,1731504648786,-500.0,0.00025,2]
[342143501,1731504648795,-151.0,0.00025,7]
[342143502,1731504648806,-151.0,0.00025,7]
[342143503,1731504648816,-1078.8293,0.00025,2]
[342143504,1731504648825,-202.0,0.00025,2]
[342143505,1731504648834,-500.0,0.00025073,2]
[342143506,1731504648843,-500.0,0.00025073,2]
[342143507,1731504648852,-52149.1460567,0.0002509,2]
[342143508,1731504648868,-549.48648356,0.0002509,2]
[342143509,1731504648881,-17583.5117155,0.0002509,2]
[342143510,1731504648911,-11794.5311689,0.0002509,2]
[342143511,1731504648930,-4476.71027768,0.0002509,2]
[342143512,1731504648942,-743.00661107,0.0002509,2]
[342143516,1731504654595,1000.0,0.00027,60]
[342143517,1731504665431,1000.0,0.00027,60]
[342143518,1731504671970,1000.0,0.00027,60]
[342143519,1731504681138,1000.0,0.00027,60]
[342143521,1731504694704,1000.0,0.00027,60]
[342143522,1731504704480,1000.0,0.00027,60]
[342143523,1731504760951,1575.0,0.00027,60]
[342143769,1731505835315,-182.413702,0.00018765,2]
[342143770,1731505835325,-197.9379176,0.00018785,2]
[342143771,1731505835335,-4218.7227392,0.00019038,2]
[342143772,1731505835344,-1240.11806107,0.00019689,2]
[342143773,1731505835353,-162.57594182,0.0001969,2]
[342143774,1731505835363,-300.0,0.00019772,2]
[342143775,1731505835372,-300.0,0.00019772,2]
[342143776,1731505835382,-500.0,0.00019773,2]
[342143777,1731505835391,-260.74844953,0.00019773,2]
[342143778,1731505835400,-579.9455461,0.00019773,2]
[342143779,1731505835411,-1000.0,0.00019788,2]
[342143780,1731505835420,-500.0,0.00019788,2]
[342143781,1731505835429,-500.0,0.00019788,2]
[342143782,1731505835439,-500.0,0.00019788,2]
[342143783,1731505835448,-500.0,0.00019788,2]
[342143784,1731505835458,-5673.22,0.00019788,2]
[342143785,1731505835467,-611.18,0.00019788,2]
[342143786,1731505835477,-1115.23,0.00019788,2]
[342143787,1731505835486,-500.0,0.00019788,2]
[342143788,1731505835503,-500.0,0.00019788,2]
[342143789,1731505835512,-500.0,0.00019788,2]
[342143790,1731505835522,-598.86809789,0.00019788,2]
[342143791,1731505835531,-500.0,0.00019788,2]
[342143792,1731505835541,-500.0,0.00019788,2]
[342143793,1731505835550,-1220.52,0.00019788,2]
[342143794,1731505835559,-500.0,0.00019788,2]
[342143795,1731505835568,-825.93,0.00019788,2]
[342143796,1731505835577,-670.81,0.00019788,2]
[342143797,1731505835586,-500.0,0.00019788,2]
[342143798,1731505835595,-500.0,0.00019788,2]
[342143799,1731505835604,-213.19532757,0.00019789,2]
[342143800,1731505835614,-500.0,0.00019789,2]
[342143801,1731505835623,-500.0,0.00019789,2]
[342143802,1731505835633,-483.89,0.00019789,2]
[342143803,1731505835643,-500.0,0.00019789,2]
[342143804,1731505835651,-500.0,0.00019789,2]
[342143805,1731505835661,-500.0,0.00019789,2]
[342143806,1731505835671,-500.0,0.00019789,2]
[342143807,1731505835681,-500.0,0.00019789,2]
[342143808,1731505835691,-500.0,0.00019789,2]
[342143809,1731505835700,-500.0,0.00019789,2]
[342143810,1731505835710,-500.0,0.00019789,2]
[342143811,1731505835720,-500.0,0.00019789,2]
[342143812,1731505835729,-500.0,0.00019789,2]
[342143813,1731505835739,-500.0,0.00019789,2]
[342143814,1731505835756,-500.0,0.00019789,2]
[342143815,1731505835766,-500.0,0.00019789,2]
[342143816,1731505835775,-1000.0,0.00019789,2]
[342143817,1731505835784,-500.0,0.00019789,2]
[342143818,1731505835794,-500.0,0.00019789,2]
[342143819,1731505835802,-520.45424223,0.00019789,2]
[342143820,1731505835812,-500.0,0.00019789,2]
[342143821,1731505835966,-505.35638428,0.00019789,2]
[342143822,1731505835977,-500.0,0.00019789,2]
[342143823,1731505835986,-202.591345,0.00019789,2]
[342143824,1731505836001,-500.0,0.00019789,2]
[342143825,1731505836011,-501.09887997,0.00019789,2]
[342143826,1731505836020,-500.0,0.00019789,2]
[342143827,1731505836030,-558.42760209,0.00019789,2]
[342143828,1731505836039,-500.0,0.00019789,2]
[342143829,1731505836049,-522.36107973,0.00019789,2]
[342143830,1731505836058,-500.0,0.00019789,2]
[342143831,1731505836068,-522.56171034,0.00019789,2]
[342143832,1731505836078,-500.0,0.00019789,2]
[342143833,1731505836087,-500.0,0.00019789,2]
[342143834,1731505836096,-513.53149758,0.00019789,2]
[342143835,1731505836106,-378.94242025,0.00019789,2]
[342143836,1731505836115,-500.0,0.00019789,2]
[342143837,1731505836125,-500.0,0.00019789,2]
[342143838,1731505836135,-397.10732613,0.00019789,2]
[342143839,1731505836144,-500.0,0.00019789,2]
[342143840,1731505836154,-500.0,0.00019789,2]
[342143841,1731505836164,-500.0,0.00019789,2]
[342143842,1731505836173,-500.0,0.00019789,2]
[342143843,1731505836184,-300.68840018,0.00019789,2]
[342143844,1731505836193,-500.0,0.00019789,2]
[342143845,1731505836203,-500.0,0.00019789,2]
[342143846,1731505836218,-500.0,0.00019789,2]
[342143847,1731505836228,-500.0,0.00019789,2]
[342143848,1731505836238,-500.0,0.00019789,2]
[342143849,1731505836255,-500.0,0.00019789,2]
[342143850,1731505836265,-500.0,0.00019789,2]
[342143851,1731505836275,-500.0,0.00019789,2]
[342143852,1731505836288,-500.0,0.00019789,2]
[342143853,1731505836305,-500.0,0.00019789,2]
[342143854,1731505836319,-500.0,0.00019789,2]
[342143855,1731505836335,-500.0,0.00019789,2]
[342143856,1731505836348,-500.0,0.00019789,2]
[342143857,1731505836358,-1633.29,0.00019789,2]
[342143858,1731505836368,-500.0,0.00019789,2]
[342143859,1731505836378,-500.0,0.00019789,2]
[342143860,1731505836387,-500.0,0.00019789,2]
[342143861,1731505836398,-500.0,0.00019789,2]
[342143863,1731505836408,-500.0,0.00019789,2]
[342143865,1731505836417,-500.0,0.00019789,2]
[342143867,1731505836428,-500.0,0.00019789,2]
[342143869,1731505836437,-500.0,0.00019789,2]
[342143871,1731505836447,-500.0,0.00019789,2]
[342143872,1731505836457,-500.0,0.00019789,2]
[342143873,1731505836467,-537.84972703,0.00019789,2]
[342143874,1731505836476,-551.5016532,0.00019789,2]
[342143876,1731505836486,-500.0,0.00019789,2]
[342143877,1731505836501,-500.0,0.00019789,2]
[342143878,1731505836510,-500.0,0.00019789,2]
[342143879,1731505836520,-500.0,0.00019789,2]
[342143880,1731505836530,-500.0,0.00019789,2]
[342143882,1731505836539,-500.0,0.00019789,2]
[342143884,1731505836549,-500.0,0.00019789,2]
[342143885,1731505836558,-500.0,0.00019789,2]
[342143886,1731505836568,-500.0,0.00019789,2]
[342143887,1731505836578,-236.29203952,0.00019789,2]
[342143888,1731505836588,-500.0,0.00019789,2]
[342143889,1731505836598,-500.0,0.00019789,2]
[342143890,1731505836608,-500.0,0.00019789,2]
[342143891,1731505836618,-500.0,0.00019789,2]
[342143892,1731505836628,-546.25499606,0.00019789,2]
[342143893,1731505836638,-844.15,0.00019789,2]
[342143894,1731505836647,-500.0,0.00019789,2]
[342143895,1731505836657,-500.0,0.00019789,2]
[342143896,1731505836667,-500.0,0.00019789,2]
[342143897,1731505836677,-500.0,0.00019789,2]
[342143898,1731505836686,-500.0,0.00019789,2]
[342143899,1731505836696,-656.09,0.00019789,2]
[342143900,1731505836706,-500.0,0.00019789,2]